lending/lending_fUSD_20241229
["ID","MTS","AMOUNT","RATE_DAILY","PERIOD"]
[346987038,1735454301956,-500.0,0.00012975,2]
[346987039,1735454301987,-500.0,0.00012975,2]
[346987040,1735454302018,-500.0,0.00012975,2]
[346987041,1735454302048,-500.0,0.00012975,2]
[346987042,1735454302077,-500.0,0.00012975,2]
[346987043,1735454302107,-500.0,0.00012975,2]
[346987044,1735454302135,-500.0,0.00012975,2]
[346987045,1735454302164,-500.0,0.00012975,2]
[346987046,1735454302192,-500.0,0.00012975,2]
[346987047,1735454302220,-500.0,0.00012975,2]
[346987048,1735454302249,-500.0,0.00012975,2]
[346987049,1735454302278,-861.35,0.00012975,2]
[346987050,1735454302306,-500.0,0.00012975,2]
[346987051,1735454302336,-1343.45,0.00012975,2]
[346987052,1735454302364,-500.0,0.00012975,2]
[346987053,1735454302392,-1127.09,0.00012975,2]
[346987054,1735454302421,-500.0,0.00012975,2]
[346987055,1735454302450,-636.19,0.00012975,2]
[346987056,1735454302479,-500.0,0.00012975,2]
[346987057,1735454302507,-500.0,0.00012975,2]
[346987058,1735454302536,-500.0,0.00012975,2]
[346987059,1735454302563,-500.0,0.00012975,2]
[346987060,1735454302591,-500.0,0.00012975,2]
[346987061,1735454302622,-500.0,0.00012975,2]
[346987062,1735454302650,-502.97,0.00012975,2]
[346987063,1735454302678,-500.0,0.00012975,2]
[346987064,1735454302708,-800.34,0.00012975,2]
[346987065,1735454302737,-500.0,0.00012975,2]
[346987066,1735454302765,-500.0,0.00012975,2]
[346987067,1735454302792,-500.0,0.00012975,2]
[346987068,1735454302820,-500.0,0.00012975,2]
[346987069,1735454302849,-550.46,0.00012975,2]
[346987070,1735454302877,-500.0,0.00012975,2]
[346987071,1735454302906,-500.0,0.00012975,2]
[346987072,1735454302935,-2554.99,0.00012975,2]
[346987073,1735454302963,-500.0,0.00012975,2]
[346987074,1735454302992,-8462.31,0.00012975,2]
[346987075,1735454303013,-500.0,0.00012975,2]
[346987076,1735454303314,-500.0,0.00012975,2]
[346987077,1735454303338,-155.399952,0.00012975,2]
[346987078,1735454303359,-156.141841,0.00012975,2]
[346987079,1735454303380,-500.0,0.00012975,2]
[346987080,1735454303403,-322.336479,0.00012975,2]
[346987081,1735454303426,-500.0,0.00012975,2]
[346987082,1735454303450,-322.336479,0.00012975,2]
[346987083,1735454303473,-322.336479,0.00012975,2]
[346987084,1735454303493,-151.0,0.00012975,2]
[346987085,1735454303515,-151.0,0.00012975,2]
[346987086,1735454303538,-151.0,0.00012975,2]
[346987087,1735454303561,-500.0,0.00012975,2]
[346987088,1735454303586,-1168.55137,0.00012975,2]
[346987089,1735454303613,-322.336479,0.00012975,2]
[346987090,1735454303636,-322.336479,0.00012975,2]
[346987091,1735454303659,-322.336479,0.00012975,2]
[346987092,1735454303681,-500.0,0.00012975,2]
[346987093,1735454303705,-807.74,0.00012975,2]
[346987094,1735454303728,-151.0,0.00012975,2]
[346987095,1735454303750,-500.0,0.00012975,2]
[346987096,1735454303771,-151.0,0.00012975,2]
[346987097,1735454303793,-151.0,0.00012975,2]
[346987098,1735454303817,-844.780951,0.00012975,2]
[346987099,1735454303839,-500.0,0.00012975,2]
[346987100,1735454303861,-3390.32,0.00012975,2]
[346987101,1735454303883,-862.28,0.00012975,2]
[346987102,1735454303906,-1101.16,0.00012975,2]
[346987103,1735454303928,-500.0,0.00012975,2]
[346987104,1735454303956,-500.0,0.00012975,2]
[346987105,1735454303978,-500.0,0.00012975,2]
[346987106,1735454304000,-500.0,0.00012975,2]
[346987107,1735454304023,-6993.16,0.00012975,2]
[346987108,1735454304046,-500.0,0.00012975,2]
[346987109,1735454304068,-500.0,0.00012975,2]
[346987110,1735454304092,-555.52,0.00012975,2]
[346987111,1735454304116,-1475.35,0.00012975,2]
[346987112,1735454304139,-500.0,0.00012975,2]
[346987113,1735454304164,-500.0,0.00012975,2]
[346987114,1735454304186,-791.13,0.00012975,2]
[346987115,1735454304209,-500.0,0.00012975,2]
[346987116,1735454304232,-1003.3,0.00012975,2]
[346987117,1735454304255,-500.0,0.00012975,2]
[346987118,1735454304277,-500.0,0.00012975,2]
[346987119,1735454304298,-2653.91,0.00012975,2]
[346987120,1735454304320,-500.0,0.00012975,2]
[346987121,1735454304342,-151.0,0.00012975,2]
[346987122,1735454304364,-534.81,0.00012975,2]
[346987123,1735454304390,-510.85330351,0.00012975,2]
[346987124,1735454304415,-500.0,0.00012975,2]
[346987125,1735454304439,-500.0,0.00012975,2]
[346987126,1735454304463,-538.92,0.00012975,2]
[346987127,1735454304488,-1800.44,0.00012975,2]
[346987128,1735454304511,-731.76,0.00012975,2]
[346987129,1735454304534,-500.0,0.00012975,2]
[346987130,1735454304556,-383.41650932,0.00012975,2]
[346987131,1735454304578,-514.23744994,0.00012975,2]
[346987132,1735454304600,-529.34,0.00012975,2]
[346987133,1735454304623,-500.0,0.00012975,2]
[346987134,1735454304646,-500.0,0.00012975,2]
[346987135,1735454304670,-500.0,0.00012975,2]
[346987136,1735454304692,-500.0,0.00012975,2]
[346987137,1735454304716,-533.5,0.00012975,2]
[346987138,1735454304738,-500.0,0.00012975,2]
[346987139,1735454304760,-500.0,0.00012975,2]
[346987140,1735454304783,-546.66146008,0.00012975,2]
[346987141,1735454304805,-500.0,0.00012975,2]
[346987142,1735454304828,-500.0,0.00012975,2]
[346987143,1735454304852,-913.19,0.00012975,2]
[346987144,1735454304873,-510.86688277,0.00012975,2]
[346987145,1735454304897,-500.0,0.00012975,2]
[346987146,1735454304920,-1336.8,0.00012975,2]
[346987147,1735454304944,-500.0,0.00012975,2]
[346987148,1735454304971,-500.0,0.00012975,2]
[346987149,1735454304993,-723.89,0.00012975,2]
[346987150,1735454305016,-500.0,0.00012975,2]
[346987151,1735454305038,-500.0,0.00012975,2]
[346987152,1735454305062,-500.0,0.00012975,2]
[346987153,1735454305084,-1243.7,0.00012975,2]
[346987154,1735454305105,-500.0,0.00012975,2]
[346987155,1735454305128,-500.0,0.00012975,2]
[346987156,1735454305149,-500.0,0.00012975,2]
[346987157,1735454305173,-233.04577788,0.00012975,2]
[346987158,1735454305194,-558.08,0.00012975,2]
[346987159,1735454305215,-500.0,0.00012975,2]
[346987160,1735454305239,-500.0,0.00012975,2]
[346987161,1735454305261,-500.0,0.00012975,2]
[346987162,1735454305283,-500.0,0.00012975,2]
[346987163,1735454305305,-500.0,0.00012975,2]
[346987164,1735454305327,-500.42156425,0.00012975,2]
[346987165,1735454305349,-1197.4,0.00012975,2]
[346987166,1735454305371,-500.0,0.00012975,2]
[346987167,1735454305393,-500.0,0.00012975,2]
[346987168,1735454305415,-500.0,0.00012975,2]
[346987169,1735454305436,-500.0,0.00012975,2]
[346987170,1735454305458,-1490.08,0.00012975,2]
[346987171,1735454305483,-925.43,0.00012975,2]
[346987172,1735454305507,-500.0,0.00012975,2]
[346987173,1735454305530,-500.0,0.00012975,2]
[346987174,1735454305552,-500.0,0.00012975,2]
[346987175,1735454305575,-584.7,0.00012975,2]
[346987176,1735454305597,-706.08,0.00012975,2]
[346987177,1735454305622,-500.0,0.00012975,2]
[346987178,1735454305646,-5316.41,0.00012975,2]
[346987179,1735454305668,-500.0,0.00012975,2]
[346987180,1735454305691,-500.0,0.00012975,2]
[346987181,1735454305715,-500.0,0.00012975,2]
[346987182,1735454305738,-500.0,0.00012975,2]
[346987183,1735454305761,-500.0,0.00012975,2]
[346987184,1735454305784,-522.13920914,0.00012975,2]
[346987185,1735454305809,-646.43,0.00012975,2]
[346987186,1735454305833,-500.0,0.00012975,2]
[346987187,1735454305857,-529.69178813,0.00012975,2]
[346987188,1735454305880,-5029.92,0.00012975,2]
[346987189,1735454305903,-500.0,0.00012975,2]
[346987190,1735454305928,-500.0,0.00012975,2]
[346987191,1735454305951,-500.0,0.00012975,2]
[346987192,1735454305972,-500.0,0.00012975,2]
[346987193,1735454305995,-835.08,0.00012975,2]
[346987194,1735454306017,-500.0,0.00012975,2]
[346987195,1735454306040,-902.04,0.00012975,2]
[346987196,1735454306063,-500.0,0.00012975,2]
[346987197,1735454306086,-500.0,0.00012975,2]
[346987198,1735454306109,-500.0,0.00012975,2]
[346987199,1735454306132,-500.0,0.00012975,2]
[346987200,1735454306154,-564.31,0.00012975,2]
[346987201,1735454306176,-500.0,0.00012975,2]
[346987202,1735454306199,-502.02332096,0.00012975,2]
[346987203,1735454306222,-500.0,0.00012975,2]
[346987204,1735454306245,-500.0,0.00012975,2]
[346987205,1735454306267,-516.22,0.00012975,2]
[346987206,1735454306291,-500.0,0.00012975,2]
[346987207,1735454306313,-500.0,0.00012975,2]
[346987208,1735454306336,-500.0,0.00012975,2]
[346987209,1735454306359,-500.0,0.00012975,2]
[346987210,1735454306384,-921.25,0.00012975,2]
[346987211,1735454306407,-500.0,0.00012975,2]
[346987212,1735454306594,-414.89885529,0.00012975,2]
[346987213,1735454306619,-500.0,0.00012975,2]
[346987214,1735454306643,-506.49665042,0.00012975,2]
[346987215,1735454306665,-500.0,0.00012975,2]
[346987216,1735454306688,-500.0,0.00012975,2]
[346987217,1735454306712,-500.0,0.00012975,2]
[346987218,1735454306734,-500.0,0.00012975,2]
[346987219,1735454306757,-381.91210818,0.00012975,2]
[346987220,1735454306780,-2272.66,0.00012975,2]
[346987221,1735454306803,-4164.36,0.00012975,2]
[346987222,1735454306825,-500.0,0.00012975,2]
[346987223,1735454306849,-500.0,0.00012975,2]
[346987224,1735454306876,-500.0,0.00012975,2]
[346987225,1735454306898,-500.0,0.00012975,2]
[346987226,1735454306920,-617.18,0.00012975,2]
[346987227,1735454306942,-500.0,0.00012975,2]
[346987228,1735454306964,-500.0,0.00012975,2]
[346987229,1735454306985,-543.7154699,0.00012975,2]
[346987230,1735454307009,-1212.42,0.00012975,2]
[346987231,1735454307031,-500.0,0.00012975,2]
[346987232,1735454307053,-500.0,0.00012975,2]
[346987233,1735454307075,-500.0,0.00012975,2]
[346987234,1735454307097,-500.0,0.00012975,2]
[346987235,1735454307119,-500.0,0.00012975,2]
[346987236,1735454307140,-502.56981402,0.00012975,2]
[346987237,1735454307162,-500.0,0.00012975,2]
[346987238,1735454307184,-961.96,0.00012975,2]
[346987239,1735454307207,-500.0,0.00012975,2]
[346987240,1735454307235,-500.0,0.00012975,2]
[346987241,1735454307257,-500.0,0.00012975,2]
[346987242,1735454307281,-500.0,0.00012975,2]
[346987243,1735454307304,-500.0,0.00012975,2]
[346987244,1735454307327,-182.43820365,0.00012975,2]
[346987245,1735454307350,-500.0,0.00012975,2]
[346987246,1735454307372,-500.0,0.00012976,2]
[346987247,1735454307394,-500.0,0.00012976,2]
[346987248,1735454307416,-500.0,0.00012976,2]
[346987249,1735454307438,-500.0,0.00012976,2]
[346987250,1735454307460,-500.0,0.00012976,2]
[346987251,1735454307483,-408.31592585,0.00012976,2]
[346987252,1735454307504,-500.0,0.00012976,2]
[346987253,1735454307525,-500.0,0.00012976,2]
[346987254,1735454307547,-500.0,0.00012976,2]
[346987255,1735454307569,-513.01745802,0.00012976,2]
[346987256,1735454307592,-509.22,0.00012976,2]
[346987257,1735454307616,-409.94998105,0.00012976,2]
[346987258,1735454307640,-500.0,0.00012976,2]
[346987259,1735454307662,-500.0,0.00012976,2]
[346987260,1735454307685,-500.0,0.00012976,2]
[346987261,1735454307708,-500.0,0.00012976,2]
[346987262,1735454307729,-519.39814504,0.00012976,2]
[346987263,1735454307751,-500.0,0.00012976,2]
[346987264,1735454307774,-500.0,0.00012976,2]
[346987265,1735454307797,-510.98681656,0.00012976,2]
[346987266,1735454307821,-500.0,0.00012976,2]
[346987267,1735454307844,-500.0,0.00012976,2]
[346987268,1735454307868,-500.0,0.00012976,2]
[346987269,1735454307891,-500.0,0.00012976,2]
[346987270,1735454307914,-500.0,0.00012976,2]
[346987271,1735454307938,-500.0,0.00012976,2]
[346987272,1735454307963,-500.0,0.00012976,2]
[346987273,1735454307986,-379.26140156,0.00012976,2]
[346987274,1735454308009,-501.30109965,0.00012976,2]
[346987275,1735454308033,-500.0,0.00012976,2]
[346987276,1735454308055,-500.0,0.00012976,2]
[346987277,1735454308078,-500.0,0.00012976,2]
[346987278,1735454308101,-500.0,0.00012976,2]
[346987279,1735454308123,-500.0,0.00012976,2]
[346987280,1735454308145,-500.0,0.00012976,2]
[346987281,1735454308166,-500.0,0.00012976,2]
[346987282,1735454308190,-500.0,0.00012976,2]
[346987283,1735454308212,-500.0,0.00012976,2]
[346987284,1735454308236,-500.0,0.00012976,2]
[346987285,1735454308260,-500.0,0.00012976,2]
[346987286,1735454308284,-500.0,0.00012976,2]
[346987287,1735454308306,-500.0,0.00012976,2]
[346987288,1735454308328,-500.0,0.00012976,2]
[346987289,1735454308350,-500.0,0.00012976,2]
[346987290,1735454308374,-500.0,0.00012976,2]
[346987291,1735454308397,-626.78,0.00012976,2]
[346987292,1735454308420,-500.0,0.00012976,2]
[346987293,1735454308443,-506.40677209,0.00012976,2]
[346987294,1735454308468,-500.0,0.00012976,2]
[346987295,1735454308491,-592.11195842,0.00012976,2]
[346987296,1735454308515,-224.88154938,0.00012976,2]
[346987297,1735454308537,-500.0,0.00012976,2]
[346987298,1735454308560,-500.0,0.00012976,2]
[346987299,1735454308582,-500.0,0.00012976,2]
[346987300,1735454308607,-500.0,0.00012976,2]
[346987301,1735454308633,-500.0,0.00012976,2]
[346987302,1735454308657,-500.0,0.00012976,2]
[346987303,1735454308682,-500.0,0.00012976,2]
[346987304,1735454308705,-500.0,0.00012976,2]
[346987305,1735454308728,-500.0,0.00012976,2]
[346987306,1735454308751,-501.70413677,0.00012976,2]
[346987307,1735454308774,-500.0,0.00012976,2]
[346987308,1735454308797,-511.0997078,0.00012976,2]
[346987309,1735454308855,-500.0,0.00012976,2]
[346987310,1735454308876,-503.41736759,0.00012976,2]
[346987311,1735454308897,-320.71101777,0.00012976,2]
[346987312,1735454308919,-500.0,0.00012976,2]
[346987313,1735454308940,-151.0,0.00012976,2]
[346987314,1735454308962,-152.828067,0.00012976,2]
[346987315,1735454308984,-500.0,0.00012976,2]
[346987316,1735454309005,-500.0,0.00012976,2]
[346987317,1735454309027,-557.17477732,0.00012976,2]
[346987318,1735454309048,-505.73800441,0.00012976,2]
[346987319,1735454309071,-500.0,0.00012976,2]
[346987320,1735454309093,-500.0,0.00012976,2]
[346987321,1735454309116,-500.0,0.00012976,2]
[346987322,1735454309139,-500.0,0.00012976,2]
[346987323,1735454309160,-500.0,0.00012976,2]
[346987324,1735454309182,-497.52952064,0.00012976,2]
[346987325,1735454309203,-500.0,0.00012976,2]
[346987326,1735454309224,-500.0,0.00012976,2]
[346987327,1735454309245,-500.0,0.00012976,2]
[346987328,1735454309269,-500.0,0.00012976,2]
[346987329,1735454309296,-500.0,0.00012976,2]
[346987330,1735454309319,-533.17500636,0.00012976,2]
[346987331,1735454309342,-500.0,0.00012976,2]
[346987332,1735454309367,-500.0,0.00012976,2]
[346987333,1735454309390,-500.0,0.00012976,2]
[346987334,1735454309415,-500.0,0.00012976,2]
[346987335,1735454309439,-500.0,0.00012976,2]
[346987336,1735454309464,-500.0,0.00012976,2]
[346987337,1735454309485,-500.0,0.00012976,2]
[346987338,1735454309507,-500.0,0.00012976,2]
[346987339,1735454309528,-500.0,0.00012976,2]
[346987340,1735454309549,-500.0,0.00012976,2]
[346987341,1735454309570,-500.0,0.00012976,2]
[346987342,1735454309593,-500.0,0.00012976,2]
[346987343,1735454309617,-500.0,0.00012976,2]
[346987344,1735454309640,-500.0,0.00012976,2]
[346987345,1735454309664,-500.0,0.00012976,2]
[346987346,1735454309687,-153.66972072,0.00012976,2]
[346987347,1735454309708,-426.62331094,0.00012976,2]
[346987348,1735454309731,-500.0,0.00012976,2]
[346987349,1735454309753,-500.0,0.00012976,2]
[346987350,1735454309775,-500.0,0.00012976,2]
[346987351,1735454309798,-433.51471761,0.00012976,2]
[346987352,1735454309820,-500.0,0.00012976,2]
[346987353,1735454309842,-504.71935283,0.00012976,2]
[346987354,1735454309864,-500.0,0.00012976,2]
[346987355,1735454309886,-500.0,0.00012976,2]
[346987356,1735454309909,-500.0,0.00012976,2]
[346987357,1735454309931,-500.0,0.00012976,2]
[346987358,1735454309954,-500.0,0.00012976,2]
[346987359,1735454309976,-1253.33,0.00012976,2]
[346987360,1735454309998,-500.0,0.00012976,2]
[346987361,1735454310021,-500.0,0.00012976,2]
[346987362,1735454310042,-501.55980175,0.00012976,2]
[346987363,1735454310065,-500.0,0.00012976,2]
[346987364,1735454310087,-500.0,0.00012976,2]
[346987365,1735454310109,-500.54609691,0.00012976,2]
[346987366,1735454310133,-800.56,0.00012976,2]
[346987367,1735454310155,-322.336479,0.00012976,2]
[346987368,1735454310177,-322.336479,0.00012976,2]
[346987369,1735454310200,-500.0,0.00012976,2]
[346987370,1735454310222,-322.336479,0.00012976,2]
[346987371,1735454310244,-151.0,0.00012976,2]
[346987372,1735454310267,-500.0,0.00012976,2]
[346987373,1735454310289,-151.0,0.00012976,2]
[346987374,1735454310314,-151.0,0.00012976,2]
[346987375,1735454310336,-322.336479,0.00012976,2]
[346987376,1735454310360,-322.336479,0.00012976,2]
[346987377,1735454310381,-322.336479,0.00012976,2]
[346987378,1735454310403,-151.0,0.00012976,2]
[346987379,1735454310425,-151.0,0.00012976,2]
[346987380,1735454310448,-151.0,0.00012976,2]
[346987381,1735454310470,-500.0,0.00012976,2]
[346987382,1735454310492,-500.0,0.00012976,2]
[346987383,1735454310516,-2148.13,0.00012976,2]
[346987384,1735454310539,-500.0,0.00012976,2]
[346987385,1735454310561,-3345.18,0.00012976,2]
[346987386,1735454310584,-500.0,0.00012976,2]
[346987387,1735454310607,-620.7,0.00012976,2]
[346987388,1735454310632,-500.0,0.00012976,2]
[346987389,1735454310654,-500.0,0.00012976,2]
[346987390,1735454310677,-500.0,0.00012976,2]
[346987391,1735454310701,-638.73,0.00012976,2]
[346987392,1735454310725,-632.86,0.00012976,2]
[346987393,1735454310748,-411.00724407,0.00012976,2]
[346987394,1735454310771,-500.0,0.00012976,2]
[346987395,1735454310795,-621.12,0.00012976,2]
[346987396,1735454310818,-186.05273003,0.00012976,2]
[346987397,1735454310841,-500.0,0.00012976,2]
[346987398,1735454310864,-500.0,0.00012976,2]
[346987399,1735454310888,-2435.72,0.00012976,2]
[346987400,1735454310913,-375.9,0.00012976,2]
[346987401,1735454310936,-376.26023826,0.00012977,2]
[346987402,1735454310958,-511.42133165,0.00012977,2]
[346987403,1735454310981,-504.00842952,0.00012977,2]
[346987404,1735454311004,-500.0,0.00012977,2]
[346987405,1735454311027,-500.0,0.00012977,2]
[346987406,1735454311050,-500.0,0.00012977,2]
[346987407,1735454311075,-500.0,0.00012977,2]
[346987408,1735454311099,-500.0,0.00012977,2]
[346987409,1735454311124,-643.8687279,0.00012977,2]
[346987410,1735454311148,-504.77820816,0.00012977,2]
[346987411,1735454311172,-500.0,0.00012977,2]
[346987412,1735454311195,-502.92999023,0.00012977,2]
[346987413,1735454311218,-521.40545823,0.00012977,2]
[346987414,1735454311242,-500.0,0.00012977,2]
[346987415,1735454311267,-500.0,0.00012977,2]
[346987416,1735454311290,-500.0,0.00012977,2]
[346987417,1735454311314,-464.59153142,0.00012977,2]
[346987418,1735454311338,-500.0,0.00012977,2]
[346987419,1735454311362,-500.0,0.00012977,2]
[346987420,1735454311386,-616.80517953,0.00012977,2]
[346987421,1735454311409,-463.49596546,0.00012977,2]
[346987422,1735454311433,-500.0,0.00012977,2]
[346987423,1735454311458,-506.83401973,0.00012977,2]
[346987424,1735454311483,-522.1680969,0.00012977,2]
[346987425,1735454311507,-492.82058965,0.00012977,2]
[346987426,1735454311532,-500.0,0.00012977,2]
[346987427,1735454311556,-526.04012117,0.00012977,2]
[346987428,1735454311579,-500.0,0.00012977,2]
[346987429,1735454311603,-500.0,0.00012977,2]
[346987430,1735454311628,-503.33969575,0.00012977,2]
[346987431,1735454311651,-505.33685583,0.00012977,2]
[346987432,1735454311675,-500.0,0.00012977,2]
[346987433,1735454311699,-500.0,0.00012977,2]
[346987434,1735454311723,-500.0,0.00012977,2]
[346987435,1735454311747,-500.0,0.00012977,2]
[346987436,1735454311770,-500.0,0.00012977,2]
[346987437,1735454311794,-500.0,0.00012977,2]
[346987438,1735454311817,-572.63343596,0.00012977,2]
[346987439,1735454311841,-500.0,0.00012977,2]
[346987440,1735454311864,-500.0,0.00012977,2]
[346987441,1735454311887,-500.0,0.00012977,2]
[346987442,1735454311912,-500.0,0.00012977,2]
[346987443,1735454311935,-500.0,0.00012977,2]
[346987444,1735454311959,-500.0,0.00012977,2]
[346987445,1735454311982,-504.9824966,0.00012977,2]
[346987446,1735454312005,-500.0,0.00012977,2]
[346987447,1735454312029,-508.09860113,0.00012977,2]
[346987448,1735454312053,-500.0,0.00012977,2]
[346987449,1735454312077,-500.0,0.00012977,2]
[346987450,1735454312101,-516.35639638,0.00012977,2]
[346987451,1735454312125,-503.6262284,0.00012977,2]
[346987452,1735454312149,-502.86311565,0.00012977,2]
[346987453,1735454312173,-500.0,0.00012977,2]
[346987454,1735454312199,-500.0,0.00012977,2]
[346987455,1735454312222,-502.59695091,0.00012977,2]
[346987456,1735454312245,-500.0,0.00012977,2]
[346987457,1735454312268,-500.0,0.00012977,2]
[346987458,1735454312291,-500.0,0.00012977,2]
[346987459,1735454312315,-521.07045268,0.00012977,2]
[346987460,1735454312337,-500.0,0.00012977,2]
[346987461,1735454312361,-515.6456693,0.00012977,2]
[346987462,1735454312385,-503.59199595,0.00012977,2]
[346987463,1735454312409,-505.40878143,0.00012977,2]
[346987464,1735454312433,-532.92732493,0.00012977,2]
[346987465,1735454312456,-500.0,0.00012977,2]
[346987466,1735454312480,-500.0,0.00012977,2]
[346987467,1735454312503,-503.72217001,0.00012977,2]
[346987468,1735454312526,-425.40892773,0.00012977,2]
[346987469,1735454312549,-500.0,0.00012977,2]
[346987470,1735454312572,-501.83626966,0.00012977,2]
[346987471,1735454312595,-500.0,0.00012977,2]
[346987472,1735454312620,-500.0,0.00012977,2]
[346987473,1735454312644,-500.0,0.00012977,2]
[346987474,1735454312667,-1207.8,0.00012977,7]
[346987475,1735454312691,-500.0,0.00012977,2]
[346987476,1735454312715,-500.0,0.00012977,2]
[346987477,1735454312740,-506.94349861,0.00012977,2]
[346987478,1735454312764,-500.0,0.00012977,2]
[346987479,1735454312787,-500.0,0.00012977,2]
[346987480,1735454312811,-508.14294893,0.00012977,2]
[346987481,1735454312835,-500.0,0.00012977,2]
[346987482,1735454312860,-507.05346283,0.00012977,2]
[346987483,1735454312883,-259.1443815,0.00012977,2]
[346987484,1735454313047,-503.13298221,0.00012977,2]
[346987485,1735454313114,-500.0,0.00012977,2]
[346987486,1735454313140,-501.87099505,0.00012977,2]
[346987487,1735454313162,-500.0,0.00012977,2]
[346987488,1735454313185,-564.98,0.00012977,2]
[346987489,1735454313207,-506.68946967,0.00012977,2]
[346987490,1735454313230,-502.16046772,0.00012977,2]
[346987491,1735454313253,-500.0,0.00012977,2]
[346987492,1735454313276,-503.11368271,0.00012977,2]
[346987493,1735454313298,-500.0,0.00012977,2]
[346987494,1735454313320,-504.82995388,0.00012977,2]
[346987495,1735454313343,-500.0,0.00012977,2]
[346987496,1735454313366,-506.91324741,0.00012977,2]
[346987497,1735454313388,-613.34493144,0.00012977,2]
[346987498,1735454313410,-500.0,0.00012977,2]
[346987499,1735454313433,-500.0,0.00012977,2]
[346987500,1735454313455,-512.26081639,0.00012977,2]
[346987501,1735454313478,-500.0,0.00012977,2]
[346987502,1735454313500,-500.0,0.00012977,2]
[346987503,1735454313523,-500.0,0.00012977,2]
[346987504,1735454313547,-508.1316961,0.00012977,2]
[346987505,1735454313570,-505.72904599,0.00012977,2]
[346987506,1735454313594,-500.0,0.00012977,2]
[346987507,1735454313621,-500.0,0.00012977,2]
[346987508,1735454313643,-500.0,0.00012977,2]
[346987509,1735454313666,-505.78156819,0.00012977,2]
[346987510,1735454313689,-416.87366196,0.00012977,2]
[346987511,1735454313711,-506.30172457,0.00012977,2]
[346987512,1735454313735,-500.0,0.00012977,2]
[346987513,1735454313758,-500.0,0.00012977,2]
[346987514,1735454313780,-508.53283754,0.00012977,2]
[346987515,1735454313803,-508.20979833,0.00012977,2]
[346987516,1735454313826,-500.0,0.00012977,2]
[346987517,1735454313849,-507.1515393,0.00012977,2]
[346987518,1735454313872,-575.94675,0.00012977,2]
[346987519,1735454313894,-253.0578852,0.00012977,2]
[346987520,1735454313916,-500.0,0.00012977,2]
[346987521,1735454313938,-500.0,0.00012977,2]
[346987522,1735454313961,-502.29047394,0.00012977,2]
[346987523,1735454313983,-223.52708084,0.00012977,2]
[346987524,1735454314004,-500.87242892,0.00012977,2]
[346987525,1735454314028,-500.0,0.00012977,2]
[346987526,1735454314051,-391.05120357,0.00012977,2]
[346987527,1735454314073,-540.37996887,0.00012977,2]
[346987528,1735454314097,-500.0,0.00012977,2]
[346987529,1735454314119,-500.0,0.00012977,2]
[346987530,1735454314141,-500.0,0.00012977,2]
[346987531,1735454314164,-504.50849433,0.00012977,2]
[346987532,1735454314187,-500.0,0.00012977,2]
[346987533,1735454314209,-547.98624202,0.00012977,2]
[346987534,1735454314232,-500.0,0.00012977,2]
[346987535,1735454314255,-503.44808638,0.00012977,2]
[346987536,1735454314278,-500.0,0.00012977,2]
[346987537,1735454314300,-179.78045059,0.00012977,2]